bitfinex/quotes_SOLUSD_20251127
["timestamp","ask_amount","ask_price","bid_price","bid_amount"]
[1764206433391,4.13676391,142.47,142.46,66.76057851]
[1764206433392,11.15578545,142.47,142.46,66.76057851]
[1764206434901,4.13676391,142.48,142.46,66.76057851]
[1764206435108,4.13676391,142.48,142.47,0.68]
[1764206435403,11.15496556,142.49,142.47,0.68]
[1764206435804,4.13676391,142.48,142.47,0.68]
[1764206437823,11.15529282,142.48,142.47,0.68]
[1764206440302,11.15529282,142.48,142.46,66.08057851]
[1764206440523,4.13676391,142.47,142.46,66.08057851]
[1764206442224,11.15578545,142.47,142.46,66.08057851]
[1764206442827,11.15578545,142.47,142.46,66.79057851]
[1764206443229,11.15578545,142.47,142.46,66.08057851]
[1764206444332,12.16010859,142.47,142.46,66.08057851]
[1764206445133,11.44010859,142.47,142.46,66.08057851]
[1764206445342,14.56010859,142.47,142.46,66.08057851]
[1764206445636,15.28010859,142.47,142.46,66.08057851]
[1764206446218,8.02334468,142.47,142.46,66.08057851]
[1764206446422,15.28010859,142.47,142.46,66.08057851]
[1764206446727,24.09005351,142.47,142.46,66.08057851]
[1764206447827,28.22681742,142.47,142.46,29.52404587]
[1764206448016,24.09005351,142.47,142.46,29.52404587]
[1764206448216,28.22681742,142.47,142.46,29.52404587]
[1764206448417,25.11880892,142.46,142.45,0.1]
[1764206448625,33.39233674,142.46,142.45,0.1]
[1764206449031,34.11233674,142.46,142.45,0.1]
[1764206449634,37.51665988,142.46,142.45,1e-08]
[1764206449835,44.53617412,142.46,142.45,1e-08]
[1764206450709,35.5426463,142.46,142.45,1e-08]
[1764206450914,43.81617412,142.46,142.45,1e-08]
[1764206451117,44.53617412,142.46,142.45,1e-08]
[1764206451317,0.28432314,142.45,142.4,2.99985224]
[1764206451518,4.13676391,142.41,142.4,2.99985224]
[1764206451720,7.25676391,142.41,142.4,3.70985224]
[1764206452513,5.77446672,142.41,142.4,3.70985224]
[1764206452714,12.79644551,142.41,142.4,2.99985224]
[1764206453539,9.67644551,142.41,142.4,3.70985224]
[1764206453840,12.79644551,142.41,142.4,3.70985224]
[1764206454514,12.79644551,142.41,142.4,2.99985224]
[1764206455340,12.79644551,142.41,142.4,3.70985224]
[1764206455834,13.08076865,142.41,142.4,2.99985224]
[1764206456441,7.02197879,142.41,142.4,3.70985224]
[1764206456621,16.308864,142.34,142.33,66.84119835]
[1764206456817,26.7386192,142.34,142.33,66.84119835]
[1764206457742,29.39308592,142.34,142.33,66.84119835]
[1764206457914,5.77446672,142.34,142.33,67.55119835]
[1764206458336,12.79989878,142.34,142.33,67.55119835]
[1764206458712,2.65446672,142.34,142.33,67.55119835]
[1764206459145,7.02493853,142.35,142.33,67.55119835]
[1764206459437,2.65446672,142.34,142.33,66.84119835]
[1764206460324,5.77446672,142.34,142.33,66.84119835]
[1764206460638,6.05878986,142.34,142.33,66.84119835]
[1764206460948,13.08422192,142.34,142.33,66.84119835]
[1764206461126,9.96422192,142.34,142.33,66.84119835]
[1764206461518,13.08422192,142.34,142.33,66.84119835]
[1764206462732,2.65446672,142.35,142.33,67.55119835]
[1764206462950,109.22294485,142.4,142.34,0.71]
[1764206463238,2.65446672,142.38,142.34,0.71]
[1764206463742,2.65446672,142.39,142.34,7.73541946]
[1764206464239,2.65446672,142.39,142.35,0.71]
[1764206464439,2.65446672,142.4,142.36,3.12]
[1764206464831,2.65446672,142.4,142.37,0.71]
[1764206465140,2.65446672,142.41,142.37,0.71]
[1764206465336,9.67645078,142.41,142.37,0.71]
[1764206466047,2.65446672,142.4,142.37,0.71]
[1764206466242,2.65446672,142.39,142.37,0.71]
[1764206466448,2.65446672,142.39,142.36,10.14436393]
[1764206466836,2.65446672,142.4,142.36,10.14436393]
[1764206467426,3.12,142.43,142.36,12.79883065]
[1764206467732,27.64673088,142.45,142.36,12.79883065]
[1764206467733,2.65446672,142.42,142.36,12.79883065]
[1764206468440,2.65446672,142.43,142.37,3.36446672]
[1764206468742,2.65446672,142.42,142.37,3.36446672]
[1764206468947,2.65446672,142.41,142.38,3.83]
[1764206469428,2.65446672,142.42,142.39,0.71]
[1764206470246,10.14087541,142.44,142.39,0.71]
[1764206470247,3.12,142.44,142.39,0.71]
[1764206470547,2.65446672,142.43,142.39,0.71]
[1764206471033,3.12,142.44,142.39,0.71]
[1764206471233,2.65446672,142.43,142.39,0.71]
[1764206471554,9.67571106,142.43,142.39,0.71]
[1764206472241,2.65446672,142.41,142.39,0.71]
[1764206472429,2.65446672,142.42,142.39,0.71]
[1764206473359,9.67599132,142.42,142.39,0.71]
[1764206473743,2.65446672,142.41,142.39,0.71]
[1764206474064,9.67599132,142.42,142.39,0.71]
[1764206474734,2.65446672,142.41,142.39,0.71]
[1764206474932,5.77446672,142.4,142.34,0.68]
[1764206475136,2.65446672,142.35,142.33,66.84119835]
[1764206475336,2.65446672,142.36,142.33,66.84119835]
[1764206475751,2.65446672,142.38,142.34,0.68]
[1764206476342,2.65446672,142.37,142.34,0.68]
[1764206478134,2.65446672,142.38,142.34,7.70538691]
[1764206478351,2.65446672,142.38,142.35,3.12]
[1764206478560,2.65446672,142.38,142.35,3.8]
[1764206478741,2.65446672,142.38,142.36,0.68]
[1764206480058,17.26318714,142.42,142.36,0.68]
[1764206480255,2.65446672,142.4,142.36,0.68]
[1764206481057,2.65446672,142.39,142.36,0.68]
[1764206481362,7.02195527,142.42,142.36,10.35889746]
[1764206481551,2.65446672,142.42,142.37,2.65446672]
[1764206481744,2.65446672,142.41,142.37,0.68]
[1764206481945,2.65446672,142.41,142.38,0.68]
[1764206484169,9.67646378,142.41,142.38,0.68]
[1764206484547,2.65446672,142.41,142.38,0.68]
[1764206485674,2.65446672,142.41,142.38,7.70343466]
[1764206485872,2.65446672,142.43,142.38,7.70343466]
[1764206486069,2.65446672,142.43,142.39,0.68]
[1764206487468,9.67561452,142.43,142.39,7.70287231]
[1764206487676,2.65446672,142.42,142.39,7.70287231]
[1764206487971,2.65446672,142.42,142.4,0.68]
[1764206488560,102.2,142.42,142.39,0.68]
[1764206488757,102.2,142.42,142.37,0.68]
[1764206489074,2.65446672,142.41,142.37,0.68]
[1764206489456,9.67655034,142.41,142.37,0.68]
[1764206490071,9.67655034,142.41,142.37,7.70384178]
[1764206490271,9.67655034,142.41,142.38,0.68]
[1764206490474,7.02208362,142.41,142.38,0.68]
[1764206490977,2.65446672,142.43,142.38,3.33446672]
[1764206491350,2.65446672,142.42,142.39,0.68]
[1764206491567,2.65446672,142.41,142.39,0.68]
[1764206491758,2.65446672,142.42,142.39,0.68]
[1764206491964,2.65446672,142.43,142.39,0.68]
[1764206492479,12.79513678,142.44,142.39,3.33446672]
[1764206492873,9.67571145,142.43,142.39,0.68]
[1764206493169,9.67571145,142.43,142.38,2.65446672]
[1764206493368,2.65446672,142.42,142.39,0.68]
[1764206494066,10.14061594,142.44,142.39,3.33446672]
[1764206494268,12.79508266,142.44,142.39,3.33446672]
[1764206494471,9.67508266,142.44,142.4,0.68]
[1764206495186,9.67447374,142.45,142.4,0.68]
[1764206495580,10.34447374,142.45,142.4,0.68]
[1764206496588,2.65446672,142.44,142.4,0.68]
[1764206497384,9.67514658,142.44,142.4,0.68]
[1764206497773,7.02067986,142.44,142.4,0.68]
[1764206498083,9.67514658,142.44,142.4,0.68]
[1764206498276,9.67514658,142.44,142.4,7.70236946]
[1764206498478,9.67514658,142.44,142.41,0.68]
[1764206499087,102.2,142.45,142.41,0.68]
[1764206499479,102.2,142.45,142.42,7.02148574]
[1764206499666,109.21961075,142.46,142.41,0.68]
[1764206499875,9.67407747,142.46,142.41,7.70197654]
[1764206500184,12.79365491,142.47,142.42,0.65]
[1764206500560,2.65446672,142.46,142.42,0.65]
[1764206500963,2.65446672,142.44,142.41,0.65]
[1764206501963,9.67485187,142.45,142.41,0.65]
[1764206503777,10.36485187,142.45,142.41,0.65]
[1764206503974,2.65446672,142.44,142.41,0.65]
[1764206504171,9.67508933,142.44,142.41,0.65]
[1764206504494,10.36508933,142.44,142.41,0.65]
[1764206506388,9.67462941,142.45,142.41,7.67180464]
[1764206506772,9.67462941,142.45,142.42,0.65]
[1764206507188,10.36405418,142.46,142.42,0.65]
[1764206507588,2.65446672,142.46,142.42,0.65]
[1764206508493,2.65446672,142.46,142.41,0.65]
[1764206508494,2.65446672,142.44,142.41,0.65]
[1764206508668,2.65446672,142.44,142.42,0.65]
[1764206510289,2.65446672,142.44,142.4,7.02242516]
[1764206510488,2.65446672,142.41,142.38,0.65]
[1764206511175,0.69,142.5,142.41,16.308864]
[1764206511375,0.69,142.5,142.44,2.65446672]
[1764206511599,3.34446672,142.5,142.45,0.65]
[1764206511803,2.65446672,142.48,142.45,0.65]
[1764206511988,3.34446672,142.49,142.42,3.12]
[1764206512185,3.34446672,142.49,142.43,0.65]
[1764206512186,2.65446672,142.47,142.43,0.65]
[1764206512705,3.34446672,142.47,142.43,7.67092681]
[1764206513018,10.36354026,142.47,142.43,0.65]
[1764206513180,9.67302073,142.48,142.44,0.65]
[1764206513384,7.01855401,142.48,142.44,0.65]
[1764206513604,10.36302073,142.48,142.44,0.65]
[1764206513997,3.34446672,142.47,142.44,0.65]
[1764206514282,2.65446672,142.46,142.42,0.65]
[1764206514500,7.01954799,142.46,142.43,0.65]
[1764206515607,7.01954799,142.46,142.41,14.28525927]
[1764206515608,7.70954799,142.46,142.41,3.77]
[1764206515911,11.85321109,142.46,142.43,0.65]
[1764206516108,7.70954799,142.46,142.43,0.65]
[1764206516307,7.01954799,142.46,142.41,11.16560604]
[1764206516606,0.69,142.45,142.42,0.65]
[1764206516807,11.16321109,142.46,142.42,0.65]
[1764206517008,11.85321109,142.46,142.42,0.65]
[1764206517785,7.70954799,142.46,142.42,0.65]
[1764206518006,7.01954799,142.46,142.42,0.65]
[1764206518485,11.16321109,142.46,142.42,0.65]
[1764206518887,4.1436631,142.44,142.4,3.77]
[1764206519107,4.1436631,142.43,142.4,3.77]
[1764206519508,4.1436631,142.44,142.41,0.65]
[1764206519815,4.8336631,142.44,142.4,0.65]
[1764206519983,4.8336631,142.44,142.41,0.65]
[1764206520184,4.8336631,142.44,142.39,0.65]
[1764206521283,7.02099276,142.43,142.39,0.65]
[1764206521783,7.02099276,142.43,142.39,7.67291058]
[1764206522288,7.02099276,142.43,142.4,0.65]
[1764206523706,4.1436631,142.41,142.35,0.65]
[1764206523906,4.1436631,142.39,142.35,0.65]
[1764206524279,4.8636631,142.39,142.35,0.65]
[1764206524715,4.1436631,142.38,142.35,0.65]
[1764206525187,11.16735468,142.38,142.35,0.65]
[1764206526089,4.1436631,142.38,142.35,0.65]
[1764206526803,4.8636631,142.38,142.35,0.65]
[1764206527187,11.88724657,142.38,142.35,0.65]
[1764206527589,11.16724657,142.38,142.35,0.65]
[1764206528326,11.16662819,142.39,142.35,0.65]
[1764206528912,11.86662819,142.39,142.35,0.65]
[1764206531414,4.8436631,142.38,142.35,0.65]
[1764206531922,11.16662819,142.39,142.35,0.65]
[1764206532096,109.92261801,142.4,142.35,0.65]
[1764206532296,113.36628111,142.4,142.35,0.65]
[1764206532905,114.06628111,142.4,142.35,0.65]
[1764206533418,114.06628111,142.4,142.35,7.67481022]
[1764206533620,114.06628111,142.4,142.36,0.7]
[1764206533993,11.16664231,142.39,142.36,0.7]
[1764206534504,3.12,142.41,142.36,0.7]
[1764206534505,10.14216285,142.41,142.36,7.72432718]
[1764206534820,11.16582595,142.41,142.36,10.84432718]
[1764206535015,11.16582595,142.41,142.36,3.12]
[1764206535016,4.1436631,142.37,142.36,3.12]
[1764206535401,4.1436631,142.37,142.34,0.7]
[1764206535807,4.8436631,142.37,142.34,0.7]
[1764206536008,11.86774335,142.37,142.34,0.7]
[1764206537327,11.1682639,142.36,142.33,67.54119835]
[1764206537898,11.1682639,142.36,142.34,0.7]
[1764206538096,11.1682639,142.36,142.33,67.54119835]
[1764206538394,4.8436631,142.35,142.33,66.84119835]
[1764206538593,4.1436631,142.34,142.33,66.84119835]
[1764206538805,4.8436631,142.35,142.33,66.84119835]
[1764206539209,0.7,142.34,142.33,66.84119835]
[1764206539918,4.1436631,142.38,142.34,0.7]
[1764206539919,0.7,142.38,142.34,0.7]
[1764206540225,4.1436631,142.37,142.34,0.7]
[1764206540402,4.8436631,142.37,142.34,0.7]
[1764206540819,11.86764741,142.37,142.34,0.7]
[1764206541120,4.1436631,142.36,142.34,0.7]
[1764206541622,4.1436631,142.36,142.33,66.84119835]
[1764206541802,4.1436631,142.36,142.33,67.54119835]
[1764206542007,4.1436631,142.35,142.33,66.84119835]
[1764206542208,4.8436631,142.35,142.33,66.84119835]
[1764206542929,11.16774846,142.37,142.34,0.7]
[1764206543430,11.86774846,142.37,142.34,0.7]
[1764206543811,11.86774846,142.37,142.33,74.56704988]
[1764206544844,11.86774846,142.37,142.34,0.7]
[1764206547440,11.86774846,142.37,142.33,67.54119835]
[1764206547739,4.1436631,142.36,142.33,67.54119835]
[1764206547925,4.1436631,142.36,142.34,0.7]
[1764206548224,11.16814337,142.36,142.34,0.7]
[1764206548939,20.96256537,142.39,142.34,0.7]
[1764206548940,7.02345835,142.38,142.34,0.7]
[1764206549125,4.1436631,142.37,142.34,0.7]
[1764206550041,11.86780951,142.37,142.34,0.7]
[1764206551031,4.8436631,142.37,142.34,0.7]
[1764206552043,11.16813928,142.36,142.33,67.54119835]
[1764206552946,11.16813928,142.36,142.33,66.84119835]
[1764206553120,11.16813928,142.36,142.34,0.7]
[1764206554947,11.16813928,142.36,142.33,66.84119835]
[1764206555126,11.16813928,142.36,142.34,0.7]
[1764206556322,11.16813928,142.36,142.33,66.84119835]
[1764206556629,11.8688233,142.35,142.33,66.84119835]
[1764206557325,7.7251602,142.35,142.33,66.84119835]
[1764206557526,11.86826215,142.36,142.33,66.84119835]
[1764206559148,4.1436631,142.34,142.33,66.84119835]
[1764206559524,4.8436631,142.34,142.33,66.84119835]
[1764206561124,11.86909516,142.34,142.33,66.84119835]
[1764206564954,12.1534183,142.34,142.33,66.84119835]
[1764206565330,123.16336322,142.34,142.33,22.92511849]
[1764206565526,123.16336322,142.34,142.27,0.68]
[1764206565739,4.1436631,142.29,142.26,72.46900826]
[1764206566153,4.8236631,142.29,142.26,72.46900826]
[1764206566359,7.9436631,142.29,142.26,72.46900826]
[1764206567229,7.02839471,142.28,142.26,72.46900826]
[1764206568045,11.85205781,142.28,142.26,72.46900826]
[1764206568249,0.68,142.27,142.26,72.46900826]
[1764206568443,11.85205781,142.28,142.26,72.46900826]
[1764206569352,7.02839471,142.28,142.26,73.14900826]
[1764206569543,7.02839471,142.28,142.26,72.46900826]
[1764206570245,11.17205781,142.28,142.26,72.46900826]
[1764206570635,11.85205781,142.28,142.26,72.46900826]
[1764206570962,7.70888873,142.27,142.26,72.46900826]
[1764206571257,7.02888873,142.27,142.26,72.46900826]
[1764206572754,11.85219896,142.28,142.26,72.46900826]
[1764206573361,102.2,142.29,142.27,0.68]
[1764206573952,4.1436631,142.31,142.27,0.68]
[1764206574641,2.65767804,142.31,142.27,0.68]
[1764206575046,10.14675406,142.32,142.27,7.70873154]
[1764206575346,12.80421556,142.32,142.27,7.70873154]
[1764206575547,12.80421556,142.32,142.28,0.68]
[1764206577156,9.68421556,142.32,142.28,0.68]
[1764206577751,2.65767804,142.32,142.28,7.70809123]
[1764206578057,111.88365331,142.33,142.28,7.70809123]
[1764206578356,109.22597527,142.33,142.29,3.8]
[1764206578745,109.22597527,142.33,142.3,0.68]
[1764206579757,111.88365331,142.33,142.3,0.68]
[1764206579960,2.65767804,142.32,142.3,0.68]
[1764206580667,2.65767804,142.32,142.29,3.12]
[1764206580668,3.33767804,142.32,142.28,7.70809123]
[1764206580957,2.65767804,142.32,142.28,0.68]
[1764206581164,2.65767804,142.31,142.28,0.68]
[1764206582063,9.68464947,142.31,142.28,0.68]
[1764206582237,2.65767804,142.3,142.28,0.68]
[1764206583258,9.68512755,142.3,142.28,0.68]
[1764206583962,12.80472443,142.31,142.28,0.68]
[1764206587662,0.72,142.3,142.26,80.16822378]
[1764206587960,3.37767804,142.3,142.27,0.67]
[1764206588364,102.2,142.33,142.27,0.67]
[1764206588663,2.65767804,142.35,142.3,7.02740688]
[1764206588969,9.68127153,142.38,142.32,2.65767804]
[1764206589144,5.77767804,142.38,142.32,2.65767804]
[1764206589342,2.65767804,142.36,142.31,3.12]
[1764206589559,2.65767804,142.33,142.3,0.67]
[1764206589763,2.65767804,142.34,142.31,0.66]
[1764206591339,9.6831581,142.34,142.31,0.66]
[1764206592055,2.65767804,142.34,142.31,0.66]
[1764206594068,0.28432314,142.38,142.31,0.66]
[1764206594250,2.65767804,142.37,142.31,10.80675093]
[1764206594570,2.65767804,142.37,142.31,31.03171166]
[1764206594767,2.65767804,142.37,142.33,7.02592566]
[1764206595067,2.65767804,142.37,142.34,0.66]
[1764206596570,0.69,142.4,142.34,0.66]
[1764206596870,2.65767804,142.39,142.34,3.78]
[1764206597068,2.65767804,142.38,142.34,10.80531216]
[1764206597447,2.65767804,142.38,142.35,0.66]
[1764206598063,2.65767804,142.38,142.35,7.68487415]
[1764206598468,10.14151401,142.42,142.36,0.66]
[1764206598665,2.65767804,142.41,142.36,0.66]
[1764206598846,0.69,142.42,142.36,0.66]
[1764206599176,2.65767804,142.42,142.36,0.66]
[1764206599353,2.65767804,142.42,142.37,3.12]
[1764206599752,2.65767804,142.42,142.38,0.66]
[1764206600161,0.69,142.42,142.38,7.68310544]
[1764206600366,3.34767804,142.42,142.38,7.68310544]
[1764206600561,3.34767804,142.42,142.39,0.66]
[1764206600763,2.65767804,142.43,142.39,0.66]
[1764206601363,3.34767804,142.43,142.39,0.66]
[1764206601976,37.14894139,142.47,142.39,0.66]
[1764206601977,0.28432314,142.47,142.39,0.66]
[1764206602171,2.65767804,142.44,142.4,7.02247191]
[1764206602494,2.65767804,142.45,142.4,7.02247191]
[1764206602799,2.65767804,142.43,142.41,0.66]
[1764206604280,2.65767804,142.44,142.41,7.68195313]
[1764206604769,2.65767804,142.43,142.4,7.02243757]
[1764206604953,2.65767804,142.42,142.39,7.68281227]
[1764206605460,2.65767804,142.42,142.4,0.66]
[1764206605780,3.34767804,142.41,142.37,3.78]
[1764206605957,2.65767804,142.4,142.37,3.78]
[1764206606160,2.65767804,142.4,142.38,0.66]
[1764206606554,102.89,142.44,142.38,7.68336763]
[1764206606763,2.65767804,142.43,142.38,7.68336763]
[1764206607067,2.65767804,142.42,142.39,0.66]
[1764206608198,2.65767804,142.41,142.38,0.66]
[1764206608481,2.65767804,142.4,142.38,0.66]
[1764206609579,2.65767804,142.4,142.38,7.68330521]
[1764206610670,3.81,142.42,142.38,7.68330521]
[1764206610867,2.65767804,142.41,142.38,7.68330521]
[1764206611259,2.65767804,142.41,142.39,0.66]
[1764206611465,2.65767804,142.41,142.38,7.68330521]
[1764206612071,2.65767804,142.4,142.38,7.02330521]
[1764206612271,2.65767804,142.4,142.38,7.68330521]
[1764206612681,2.65767804,142.4,142.38,0.66]
[1764206612886,2.65767804,142.4,142.36,3.12]
[1764206612887,2.65767804,142.39,142.36,3.12]
[1764206613068,2.65767804,142.39,142.36,0.66]
[1764206613272,3.34767804,142.39,142.36,0.66]
[1764206613872,2.65767804,142.39,142.36,0.66]
[1764206614072,0.69,142.41,142.36,0.66]
[1764206614073,0.69,142.41,142.36,7.68411338]
[1764206614273,2.65767804,142.4,142.37,0.66]
[1764206614472,3.34767804,142.4,142.37,0.66]
[1764206614776,2.65767804,142.39,142.37,0.66]
[1764206615586,2.65767804,142.4,142.37,0.66]
[1764206615986,10.8321147,142.41,142.37,0.66]
[1764206616172,2.65767804,142.4,142.37,0.66]
[1764206619793,3.34767804,142.4,142.37,0.66]
[1764206621576,3.12,142.41,142.37,7.68376716]
[1764206621887,2.65767804,142.4,142.37,7.68376716]
[1764206622090,2.65767804,142.4,142.38,0.68]
[1764206623495,3.34767804,142.39,142.35,7.02459571]
[1764206623692,3.34767804,142.39,142.35,7.70459571]
[1764206623990,3.34767804,142.39,142.36,0.68]
[1764206624171,2.65767804,142.39,142.36,0.68]
[1764206625080,3.12,142.41,142.36,7.70411049]
[1764206625288,5.77767804,142.41,142.36,7.70411049]
[1764206625480,5.77767804,142.41,142.37,0.68]
[1764206626496,6.46767804,142.41,142.37,0.68]
[1764206626683,2.65767804,142.4,142.37,0.68]
[1764206627289,2.65767804,142.4,142.38,7.02345835]
[1764206627887,5.77767804,142.41,142.39,0.68]
[1764206629894,3.12,142.41,142.39,0.68]
[1764206630072,5.77767804,142.41,142.39,0.68]
[1764206632298,3.12,142.41,142.39,0.68]
[1764206632482,28.18114148,142.45,142.39,13.48056104]
[1764206632483,104.85767804,142.45,142.39,13.48056104]
[1764206632688,102.2,142.45,142.39,88.48056104]
[1764206632884,5.77767804,142.46,142.4,0.68]
[1764206633207,6.46767804,142.46,142.4,0.68]
[1764206633408,6.46767804,142.46,142.4,3.33767804]
[1764206633583,2.65767804,142.45,142.41,0.68]
[1764206634204,3.34767804,142.45,142.41,0.68]
[1764206634497,2.65767804,142.45,142.42,7.02148574]
[1764206634704,4.14437711,142.45,142.42,7.02148574]
[1764206634901,4.14437711,142.45,142.42,7.70148574]
[1764206639211,4.14437711,142.45,142.43,0.68]
[1764206639705,4.14437711,142.45,142.42,0.68]
[1764206640910,4.14437711,142.45,142.42,7.70100275]
[1764206641103,4.14437711,142.45,142.43,0.68]
[1764206641314,4.83437711,142.45,142.42,7.70100275]
[1764206642184,4.14437711,142.45,142.43,0.68]
[1764206642502,4.83437711,142.46,142.41,24.57692577]
[1764206642678,4.83437711,142.46,142.42,0.68]
[1764206643195,4.83437711,142.46,142.43,7.02099276]
[1764206643686,4.83437711,142.46,142.43,7.70099276]
[1764206645507,3.1,142.47,142.39,78.12]
[1764206645739,4.14437711,142.43,142.4,0.68]
[1764206645880,4.14437711,142.46,142.4,4.82437711]
[1764206646082,4.83437711,142.46,142.4,4.82437711]
[1764206646280,4.83437711,142.46,142.41,0.68]
[1764206646505,4.83437711,142.45,142.41,0.68]
[1764206648215,4.83437711,142.45,142.41,7.70161966]
[1764206648605,4.83437711,142.45,142.42,0.67]
[1764206649015,4.14437711,142.44,142.42,0.67]
[1764206649800,4.84437711,142.43,142.4,7.02243397]
[1764206650002,4.84437711,142.43,142.4,7.74243397]
[1764206650204,0.7,142.43,142.4,7.74243397]
[1764206650422,4.84437711,142.43,142.4,7.74243397]
[1764206650798,4.84437711,142.43,142.4,7.02243397]
[1764206651306,4.84437711,142.43,142.4,7.74243397]
[1764206651623,7.94437711,142.44,142.41,0.72]
[1764206652494,4.14437711,142.45,142.41,7.7418826]
[1764206652694,14.96397412,142.46,142.42,0.72]
[1764206653100,4.14437711,142.45,142.42,0.72]
[1764206654322,4.14437711,142.46,142.42,7.74134457]
[1764206654497,4.14437711,142.46,142.43,0.72]
[1764206654815,0.7,142.45,142.42,7.74134457]
[1764206655019,4.84437711,142.46,142.43,0.72]
[1764206655521,7.01955599,142.46,142.4,3.82]
[1764206655708,4.14437711,142.42,142.39,7.74282524]
[1764206656097,4.14437711,142.42,142.4,0.72]
[1764206656621,4.14437711,142.43,142.4,0.72]
[1764206657817,4.84437711,142.43,142.38,24.58202731]
[1764206658021,7.02052236,142.44,142.38,24.58202731]
[1764206658022,4.84437711,142.42,142.39,0.72]
[1764206658202,4.84437711,142.42,142.38,7.74345835]
[1764206658520,0.7,142.41,142.37,7.02382155]
[1764206658826,4.14437711,142.4,142.36,3.82]
[1764206659120,4.14437711,142.4,142.36,10.84441988]
[1764206659315,4.14437711,142.41,142.37,0.72]
[1764206659805,4.84437711,142.41,142.37,0.72]
[1764206660610,4.84437711,142.4,142.37,0.72]
[1764206660925,4.14437711,142.4,142.37,0.72]
[1764206661226,4.84437711,142.4,142.37,0.72]
[1764206661723,4.84437711,142.4,142.36,10.84441988]
[1764206661917,4.84437711,142.4,142.36,3.82]
[1764206662111,4.14437711,142.4,142.37,0.72]
[1764206664024,4.84437711,142.41,142.37,7.74389043]
[1764206664227,4.14437711,142.45,142.39,4.14437711]
[1764206664408,11.16348381,142.47,142.4,4.86437711]
[1764206664717,4.14437711,142.46,142.4,4.86437711]
[1764206664926,4.14437711,142.46,142.41,0.72]
[1764206665419,4.84437711,142.46,142.41,0.72]
[1764206665624,4.84437711,142.46,142.42,7.02148574]
[1764206665827,4.84437711,142.46,142.42,7.74148574]
[1764206667112,4.84437711,142.46,142.43,0.72]
[1764206670525,113.01857847,142.48,142.43,7.74072171]
[1764206670732,114.06295558,142.48,142.43,7.74072171]
[1764206670941,114.06295558,142.48,142.44,0.72]
[1764206671107,114.06295558,142.48,142.43,7.02072171]
[1764206671108,4.84437711,142.47,142.43,7.74072171]
[1764206671627,4.84437711,142.47,142.43,7.02072171]
[1764206671829,12.06253619,142.49,142.44,7.74041114]
[1764206672126,4.34437711,142.49,142.45,0.72]
[1764206672328,0.2,142.49,142.45,4.86437711]
[1764206672734,11.36241554,142.49,142.44,11.16478825]
[1764206673032,12.06241554,142.49,142.45,0.72]
[1764206673532,0.7,142.48,142.45,0.72]
[1764206673710,12.06241554,142.49,142.45,7.73982078]
[1764206674813,5.04437711,142.49,142.45,7.73982078]
[1764206678338,0.7,142.48,142.45,7.73982078]
[1764206678832,4.34437711,142.49,142.45,7.73982078]
[1764206679141,5.04437711,142.49,142.45,7.73982078]
[1764206679733,0.9,142.49,142.45,7.73982078]
[1764206679934,5.04437711,142.49,142.44,7.02049985]
[1764206680233,5.04437711,142.49,142.46,0.7]
[1764206680544,0.2,142.49,142.46,0.7]
[1764206681418,0.2,142.49,142.46,7.71939619]
[1764206681835,4.14437711,142.47,142.43,0.7]
[1764206682038,4.14437711,142.47,142.44,0.7]
[1764206682214,7.50258534,142.49,142.44,0.7]
[1764206682540,7.24437711,142.48,142.44,0.7]
[1764206682923,4.14437711,142.48,142.44,0.7]
[1764206683126,15.12263931,142.49,142.44,0.7]
[1764206683527,15.12263931,142.49,142.44,7.72004091]
[1764206684039,15.12263931,142.49,142.45,0.7]
[1764206684417,0.2,142.49,142.45,0.7]
[1764206685439,0.2,142.49,142.45,7.71965227]
[1764206685936,4.34437711,142.49,142.46,0.7]
[1764206687817,0.2,142.49,142.46,7.71950576]
[1764206688538,0.2,142.49,142.47,0.7]
[1764206688918,0.2,142.49,142.47,7.71872284]
[1764206689424,4.80437711,142.48,142.42,7.9188675]
[1764206689632,4.14437711,142.43,142.38,0.7]
[1764206689813,4.14437711,142.41,142.38,0.7]
[1764206690019,4.14437711,142.43,142.38,7.72336462]